bitfinex/quotes_ETHUSD_20250629
["timestamp","ask_amount","ask_price","bid_price","bid_amount"]
[1751171340064,32.06617863,2429.9,2429.8,0.001]
[1751171340283,62.06617863,2429.9,2429.8,0.001]
[1751171341984,63.06617863,2429.9,2429.8,0.001]
[1751171344095,15.96531655,2429.9,2429.8,0.001]
[1751171344277,19.97634759,2429.9,2429.8,0.001]
[1751171344477,26.57534759,2429.9,2429.8,0.001]
[1751171344999,26.57534759,2429.9,2429.8,0.7997]
[1751171345000,19.97634759,2429.9,2429.8,0.7997]
[1751171345298,26.57534759,2429.9,2429.8,0.7997]
[1751171346597,19.97634759,2429.9,2429.8,0.7997]
[1751171346783,26.57434759,2429.9,2429.8,0.7997]
[1751171346986,26.77994759,2429.9,2429.8,0.7997]
[1751171367441,26.77994759,2429.9,2429.8,0.001]
[1751171384760,20.18194759,2429.9,2429.8,0.001]
[1751171384965,26.77894759,2429.9,2429.8,0.77]
[1751171402757,11.2056,2429.9,2429.8,0.77]
[1751171403072,11.0,2429.9,2429.8,1.32]
[1751171403277,6.68403104,2429.9,2429.8,1.80203179]
[1751171403574,9.97634759,2429.9,2429.8,0.001]
[1751171403778,10.18194759,2429.9,2429.8,0.001]
[1751171404877,9.18194759,2429.9,2429.8,0.001]
[1751171407180,19.18194759,2429.9,2429.8,0.001]
[1751171416791,20.18194759,2429.9,2429.8,0.001]
[1751171445836,16.88963104,2429.9,2429.8,0.001]
[1751171446014,23.48663104,2429.9,2429.8,0.001]
[1751171446639,26.77894759,2429.9,2429.8,0.001]
[1751171478588,11.2056,2429.9,2429.8,0.8268]
[1751171478764,11.0,2429.9,2429.8,0.8268]
[1751171478969,11.0,2429.9,2429.8,1.31449642]
[1751171483498,1.0,2429.9,2429.8,1.31449642]
[1751171485986,1.0,2429.9,2429.8,1.86449642]
[1751171491289,1.0,2429.9,2429.8,0.551]
[1751171492224,4.29231655,2429.9,2429.8,0.551]
[1751171495014,1.0,2429.9,2429.8,0.551]
[1751171497230,4.29231655,2429.9,2429.8,0.551]
[1751171502807,1.0,2429.9,2429.8,0.551]
[1751171512837,1.0,2429.9,2429.8,1.3505]
[1751171513045,1.0,2429.9,2429.8,2.16483463]
[1751171516317,1.0,2429.9,2429.8,1.3505]
[1751171516512,20.0936582,2430.1,2429.8,1.3505]
[1751171517547,13.4976582,2430.1,2429.8,1.3505]
[1751171517747,0.2056,2430.1,2429.8,4.64287061]
[1751171519947,0.2056,2430.1,2429.8,1.3505]
[1751171520447,0.2056,2430.1,2429.8,2.16482214]
[1751171520647,10.0,2430.3,2430.0,0.8277]
[1751171520849,10.2056,2430.3,2430.0,0.8277]
[1751171521143,2.4443,2430.5,2430.0,0.8277]
[1751171521144,1.672,2430.5,2430.1,3.84200322]
[1751171521342,11.672,2430.5,2430.2,0.7783]
[1751171521542,11.672,2430.5,2430.3,0.55]
[1751171522228,1.672,2430.5,2430.3,0.55]
[1751171522631,6.595,2430.7,2430.3,4.32427229]
[1751171522938,6.595,2430.7,2430.4,0.2056]
[1751171523138,13.49680005,2430.8,2430.4,0.2056]
[1751171523139,20.09180005,2430.8,2430.4,0.2056]
[1751171523448,13.49680005,2430.8,2430.5,0.7783]
[1751171524423,0.2056,2430.8,2430.5,0.7783]
[1751171524639,0.2056,2430.8,2430.6,0.42754756]
[1751171525244,0.2056,2430.8,2430.5,0.7783]
[1751171526462,3.29290707,2431.0,2430.6,0.55]
[1751171526625,10.0,2430.9,2430.7,0.2056]
[1751171527367,13.29097106,2430.9,2430.7,0.2056]
[1751171530050,10.0,2430.9,2430.7,0.2056]
[1751171532458,10.0,2430.9,2430.7,1.01727336]
[1751171533055,10.0,2430.9,2430.8,0.7783]
[1751171533847,0.002,2431.0,2430.9,0.55]
[1751171541339,0.002,2431.0,2430.9,3.84096219]
[1751171545371,0.002,2431.0,2430.9,4.62546219]
[1751171545574,0.002,2431.0,2430.9,5.51884328]
[1751171548444,0.002,2431.0,2430.9,2.22788109]
[1751171548966,0.002,2431.0,2430.9,5.51884328]
[1751171550878,0.002,2431.0,2430.9,2.22788109]
[1751171551198,0.002,2431.0,2430.9,1.3345]
[1751171554500,0.002,2431.0,2430.9,4.62546219]
[1751171556004,0.002,2431.0,2430.9,1.3345]
[1751171556804,0.002,2431.0,2430.9,0.55]
[1751171561619,0.002,2431.0,2430.9,3.84096219]
[1751171561902,0.002,2431.0,2430.9,4.65127805]
[1751171569988,0.002,2431.0,2430.9,13.71227805]
[1751171571336,0.002,2431.0,2430.9,12.05227805]
[1751171572128,0.002,2431.0,2430.9,5.43927805]
[1751171572354,0.002,2431.0,2430.9,12.05327805]
[1751171583800,0.002,2431.0,2430.8,1.8886]
[1751171584001,0.002,2431.0,2430.9,6.618]
[1751171584533,0.002,2431.0,2430.9,9.90896219]
[1751171584712,0.002,2431.0,2430.9,10.45896219]
[1751171585044,0.002,2431.0,2430.9,0.55]
[1751171585338,0.002,2431.0,2430.9,10.45996219]
[1751171585515,0.002,2431.0,2430.9,7.169]
[1751171592160,0.002,2431.0,2430.9,0.55]
[1751171592345,0.002,2431.0,2430.9,7.167]
[1751171593654,0.002,2431.0,2430.9,10.45796219]
[1751171595869,0.002,2431.0,2430.9,7.167]
[1751171598167,0.002,2431.0,2430.9,0.55]
[1751171598377,0.002,2431.0,2430.9,7.166]
[1751171598531,0.002,2431.0,2430.9,0.55]
[1751171602242,0.7956,2431.0,2430.9,0.55]
[1751171606796,4.08649225,2431.0,2430.8,0.55]
[1751171624773,5.68640569,2430.9,2430.4,3.29158371]
[1751171624972,0.8255,2430.8,2430.5,0.7556]
[1751171631519,0.8255,2430.8,2430.5,1.57211406]
[1751171633521,0.2056,2430.9,2430.5,4.86359459]
[1751171644752,0.002,2431.0,2430.9,0.55]
[1751171652863,0.002,2431.0,2430.9,3.84096219]
[1751171653764,0.002,2431.0,2430.9,0.55]
[1751171655264,0.002,2431.0,2430.9,3.84096219]
[1751171655865,0.002,2431.0,2430.9,0.55]
[1751171674196,0.002,2431.0,2430.9,3.84096219]
[1751171674697,0.002,2431.0,2430.9,0.55]
[1751171707248,3.29282682,2431.0,2430.9,0.55]
[1751171707448,3.29282682,2431.0,2430.7,0.7579]
[1751171707449,3.29096219,2430.9,2430.5,0.55]
[1751171707651,3.29096219,2430.9,2430.7,0.55]
[1751171707833,4.31818708,2431.0,2430.7,0.55]
[1751171708028,3.29097053,2430.9,2430.7,0.55]
[1751171711254,4.3182031,2431.0,2430.7,0.55]
[1751171719884,1.0273,2431.0,2430.7,0.55]
[1751171720181,0.2076,2431.0,2430.7,0.55]
[1751171722306,0.2076,2431.0,2430.7,3.84123288]
[1751171727979,0.002,2431.0,2430.8,0.2056]
[1751171728187,0.002,2431.0,2430.9,0.55]
[1751171732201,3.29282682,2431.0,2430.9,0.55]
[1751171734312,0.002,2431.0,2430.9,0.55]
[1751171741524,3.29282682,2431.0,2430.9,0.55]
[1751171761252,0.002,2431.0,2430.9,0.55]
[1751171761558,3.29282682,2431.0,2430.9,0.55]
[1751171779584,0.002,2431.0,2430.9,0.55]
[1751171783976,3.29282682,2431.0,2430.9,0.55]
[1751171794184,3.29096219,2430.9,2430.8,0.2056]
[1751171794381,3.29096219,2430.9,2430.3,4.32018912]
[1751171794382,3.4967669,2430.8,2430.3,4.32018912]
[1751171794548,3.4967669,2430.8,2430.4,0.55]
[1751171808001,3.29125262,2430.7,2430.4,0.55]
[1751171809501,8.97659891,2430.7,2430.4,0.55]
[1751171820121,5.68534629,2430.7,2430.4,0.55]
[1751171820315,5.68534629,2430.7,2430.4,3.84162809]
[1751171821833,5.68534629,2430.7,2430.4,0.55]
[1751171822608,5.68534629,2430.7,2430.5,0.8001]
[1751171826943,0.2056,2430.8,2430.6,0.55]
[1751171835965,3.49670219,2430.8,2430.6,0.55]
[1751171845258,3.29123297,2430.7,2430.6,0.55]
[1751171845637,3.49676184,2430.8,2430.6,0.55]
[1751171848261,0.2056,2430.8,2430.6,0.55]
[1751171853445,6.6,2431.0,2430.6,3.84133771]
[1751171853446,13.29283548,2431.0,2430.6,3.84133771]
[1751171853645,16.8056,2431.0,2430.7,0.8199]
[1751171856280,10.2076,2431.0,2430.7,0.8199]
[1751171856469,16.8056,2431.0,2430.7,0.8199]
[1751171857396,16.8056,2431.0,2430.8,0.55]
[1751171862488,20.09643352,2431.0,2430.8,0.55]
[1751171863282,13.49843352,2431.0,2430.8,0.55]
[1751171875764,3.29096219,2430.9,2430.8,0.55]
[1751171879094,10.2076,2431.0,2430.8,0.55]
[1751171883198,13.49844106,2431.0,2430.8,0.55]
[1751171902635,5.68534629,2430.9,2430.6,0.2056]
[1751171902933,3.29138587,2430.6,2430.3,0.2056]
[1751171903132,3.29138587,2430.6,2430.4,0.55]
[1751171903931,15.57264443,2430.7,2430.4,0.55]
[1751171909542,15.57265788,2430.7,2430.4,0.55]
[1751171909704,3.2915038,2430.5,2430.4,0.55]
[1751171910410,3.29163923,2430.4,2430.2,0.55]
[1751171911245,9.77122257,2430.5,2430.2,0.55]
[1751171915137,3.29164958,2430.4,2430.2,0.55]
[1751171915336,9.7712502,2430.5,2430.2,0.55]
[1751171915538,3.29164702,2430.4,2430.2,0.55]
[1751171916337,8.97693002,2430.5,2430.2,0.55]
[1751171917444,3.29163924,2430.4,2430.2,0.55]
[1751171918343,8.97692852,2430.5,2430.2,0.55]
[1751171918712,3.2916436,2430.4,2430.2,0.55]
[1751171919932,8.97692276,2430.5,2430.2,0.55]
[1751171921451,5.68534629,2430.5,2430.2,0.55]
[1751171921660,8.97694223,2430.5,2430.2,0.55]
[1751171926257,3.29159594,2430.5,2430.2,0.55]
[1751171929344,3.29159594,2430.5,2430.3,0.7569]
[1751171931531,13.49703602,2430.6,2430.3,0.7569]
[1751171935045,3.29150398,2430.5,2430.3,0.7569]
[1751171936234,13.49702931,2430.6,2430.3,0.7569]
[1751171943971,3.29113825,2430.8,2430.4,0.55]
[1751171944179,19.88728918,2430.7,2430.5,0.7857]
[1751171944480,16.596,2430.7,2430.5,0.7857]
[1751171944845,10.0,2430.7,2430.5,0.7857]
[1751171945981,10.0,2430.8,2430.6,0.55]
[1751171946180,13.29121964,2430.8,2430.6,0.7556]
[1751171947481,10.0,2430.8,2430.6,0.7556]
[1751171947671,13.29110142,2430.8,2430.6,0.7556]
[1751171953488,10.0,2430.8,2430.6,0.7556]
[1751171954800,13.29110495,2430.8,2430.6,0.7556]
[1751171954996,10.0,2430.8,2430.6,0.7556]
[1751171955365,13.29110831,2430.8,2430.6,0.7556]
[1751171956519,13.29123297,2430.7,2430.6,0.7556]
[1751171960803,3.29136838,2430.6,2430.5,0.55]
[1751171974916,3.2915038,2430.5,2430.4,0.2056]
[1751171975122,3.29173397,2430.4,2430.3,0.55]
[1751171981731,8.97695013,2430.5,2430.3,0.55]
[1751171982626,3.29163923,2430.4,2430.3,0.55]
[1751171983132,3.29158143,2430.5,2430.3,0.55]
[1751171983738,3.29163923,2430.4,2430.3,0.55]
[1751172030565,3.29191013,2430.2,2430.1,0.55]
[1751172033048,3.29184073,2430.3,2430.1,0.55]
[1751172037649,3.49730993,2430.4,2430.1,0.55]
[1751172038887,3.2917799,2430.3,2430.1,0.55]
[1751172039489,3.49730213,2430.4,2430.1,0.55]
[1751172048560,3.49730213,2430.4,2430.2,0.7584]
[1751172049169,13.2914346,2430.6,2430.3,0.55]
[1751172049786,10.0,2430.6,2430.3,0.55]
[1751172049987,10.0,2430.6,2430.5,0.55]
[1751172052073,13.29136838,2430.6,2430.5,0.55]
[1751172060713,10.0,2430.6,2430.5,0.55]
[1751172063317,10.0,2430.7,2430.5,1.03057558]
[1751172065531,10.0,2430.7,2430.5,0.55]
[1751172071051,13.29124452,2430.7,2430.5,0.55]
[1751172072128,13.29117571,2430.8,2430.5,0.55]
[1751172073353,3.29123753,2430.7,2430.5,0.55]
[1751172084668,3.29136838,2430.6,2430.5,0.55]
[1751172085172,3.29130809,2430.7,2430.5,0.55]
[1751172086270,3.29136838,2430.6,2430.5,0.55]
[1751172086772,3.29131437,2430.7,2430.5,0.55]
[1751172089870,3.29136838,2430.6,2430.5,0.55]
[1751172094677,3.29130645,2430.7,2430.5,0.55]
[1751172108697,19.75910834,2430.8,2430.5,0.55]
[1751172117009,18.97650834,2430.8,2430.5,0.55]
[1751172120325,15.68534629,2430.8,2430.5,0.55]
[1751172120614,18.97644857,2430.8,2430.5,0.55]
[1751172120812,10.2056,2430.9,2430.5,3.84142571]
[1751172120985,16.7986,2430.9,2430.6,0.8184]
[1751172123711,13.49658798,2430.9,2430.6,0.8184]
[1751172123920,20.08958798,2430.9,2430.6,0.8184]
[1751172124999,10.0,2430.7,2430.6,1.3684]
[1751172128842,10.0,2430.7,2430.6,0.55]
[1751172141984,13.29123297,2430.7,2430.6,0.55]
[1751172142581,13.29116536,2430.8,2430.6,0.55]
[1751172143383,13.29123297,2430.7,2430.6,0.55]
[1751172144895,3.29138127,2430.6,2430.4,1.0033]
[1751172145075,3.29138127,2430.6,2430.5,0.55]
[1751172162932,3.29138127,2430.6,2430.5,0.55]
[1751172164839,13.29131329,2430.7,2430.5,0.55]
[1751172165738,13.29130634,2430.7,2430.5,0.55]
[1751172174835,10.0,2430.7,2430.5,0.55]
[1751172187150,13.29133136,2430.7,2430.5,0.55]
[1751172200892,3.29136838,2430.6,2430.5,0.55]
[1751172205495,3.291903,2430.3,2430.0,0.8226]
[1751172205657,8.97724929,2430.3,2430.1,0.2056]
[1751172206177,8.97724929,2430.3,2430.2,0.55]
[1751172206477,3.29191013,2430.2,2430.1,0.2056]
[1751172206679,3.29209497,2430.1,2429.8,0.001]
[1751172206901,3.29209497,2430.1,2430.0,0.55]
[1751172207446,3.29218106,2430.0,2429.9,0.2056]
[1751172207653,3.29231655,2429.9,2429.8,0.001]
[1751172208119,3.29231655,2429.9,2429.8,0.551]
[1751172208785,3.29224492,2430.0,2429.8,0.551]
[1751172209585,3.29231655,2429.9,2429.8,0.551]
[1751172210027,3.29219211,2430.0,2429.8,0.551]
[1751172211015,3.29218106,2430.0,2429.8,0.551]
[1751172211305,8.97766284,2429.9,2429.8,0.001]
[1751172211678,18.97766284,2429.9,2429.8,0.001]
[1751172235044,19.73556284,2429.9,2429.8,0.001]
[1751172236549,26.33756284,2429.9,2429.8,0.001]
[1751172238955,27.23756284,2429.9,2429.8,0.001]
[1751172239717,32.92290913,2429.9,2429.8,0.001]
[1751172240660,27.23756284,2429.9,2429.8,0.001]
[1751172242154,32.92290913,2429.9,2429.8,0.001]
[1751172247979,27.23756284,2429.9,2429.8,0.001]
[1751172254900,20.63556284,2429.9,2429.8,0.001]
[1751172255075,28.93356284,2429.9,2429.8,0.001]
[1751172257823,28.17466284,2429.9,2429.8,0.001]
[1751172267911,34.67610913,2429.9,2429.8,0.001]
[1751172269420,28.99076284,2429.9,2429.8,0.001]
[1751172274851,28.17466284,2429.9,2429.8,0.001]
[1751172278546,28.17066284,2429.9,2429.8,0.001]
[1751172283060,4.19231655,2429.9,2429.8,0.8072]
[1751172283344,9.90431655,2429.9,2429.8,0.8072]
[1751172283526,19.90431655,2429.9,2429.8,0.8072]
[1751172289351,20.80431655,2429.9,2429.8,0.8072]
[1751172290749,14.19231655,2429.9,2429.8,0.8072]
[1751172290954,26.48766284,2429.9,2429.8,0.8072]
[1751172295052,26.48666284,2429.9,2429.8,0.8072]
[1751172309487,17.506,2429.9,2429.8,0.8072]
[1751172309985,10.9,2429.9,2429.8,0.8072]
[1751172310556,0.9,2429.9,2429.8,1.76738445]
[1751172310757,0.9,2429.9,2429.8,1.97298445]
[1751172320803,13.29210874,2430.1,2429.9,0.55]
[1751172322849,10.0,2430.1,2429.9,0.55]
[1751172323634,10.9,2430.1,2429.9,0.55]
[1751172327049,14.19205379,2430.1,2429.9,0.55]
[1751172328243,0.9,2430.1,2429.9,0.55]
[1751172328452,0.9,2430.1,2430.0,1.03552404]
[1751172328611,0.9,2430.1,2430.0,0.55]
[1751172363926,0.9,2430.1,2430.0,4.61098106]
[1751172364562,0.9,2430.1,2429.9,3.29224138]
[1751172364563,13.29130368,2430.7,2430.3,0.55]
[1751172365186,3.29137708,2430.6,2430.3,0.55]
[1751172365387,5.68534629,2430.6,2430.3,0.55]
[1751172365592,6.46744629,2430.6,2430.2,0.55]
[1751172366299,3.29187181,2430.3,2429.8,3.29339005]
[1751172366509,8.97726647,2430.2,2429.8,3.29339005]
[1751172366916,8.97726647,2430.2,2429.9,0.55]
[1751172370818,5.68534629,2430.2,2429.9,0.55]
[1751172373530,5.68534629,2430.2,2429.9,3.84228972]
[1751172373823,5.68534629,2430.2,2429.9,4.30874869]
[1751172374021,5.68534629,2430.2,2429.9,4.51434869]
[1751172374324,5.68534629,2430.2,2429.9,1.22205897]
[1751172380128,10.0,2430.3,2430.1,0.55]
[1751172380327,0.2056,2430.5,2430.1,4.04758694]
[1751172381107,5.75289871,2430.8,2430.3,3.84171484]
[1751172381441,8.97666258,2430.7,2430.5,0.55]
[1751172389542,3.29136838,2430.6,2430.5,0.55]
[1751172389857,8.97665668,2430.7,2430.5,0.55]
[1751172390450,3.29136838,2430.6,2430.5,0.55]
[1751172409902,3.29170935,2430.4,2430.3,0.55]
[1751172410811,3.29177467,2430.3,2430.2,0.2056]
[1751172411007,8.97712096,2430.3,2430.2,0.2056]
[1751172411306,8.97712096,2430.3,2430.2,0.7556]
[1751172416414,5.68534629,2430.3,2430.2,0.7556]
[1751172416614,8.97712096,2430.3,2430.2,0.7556]
[1751172419017,5.68534629,2430.3,2430.2,0.7556]
[1751172420316,8.97712096,2430.3,2430.2,0.2056]
[1751172422124,8.97712096,2430.3,2430.2,0.7556]
[1751172424506,5.68534629,2430.3,2430.2,0.7556]
[1751172426527,8.97712096,2430.3,2430.2,0.7556]
[1751172426840,5.68534629,2430.3,2430.2,0.7556]
[1751172429517,18.97691048,2430.5,2430.2,0.7556]
[1751172432927,3.29165281,2430.4,2430.2,0.7556]
[1751172440129,3.29177467,2430.3,2430.2,0.7556]
[1751172440637,3.29170171,2430.4,2430.2,0.7556]
[1751172451665,3.29177467,2430.3,2430.2,0.7556]
[1751172451876,15.68534629,2430.5,2430.2,0.7556]
[1751172452048,18.97696029,2430.5,2430.2,0.7556]
[1751172452368,3.29165527,2430.4,2430.2,0.7556]
[1751172455871,3.29177467,2430.3,2430.2,0.7556]
[1751172456977,3.29171874,2430.4,2430.2,0.7556]
[1751172459968,3.29170867,2430.4,2430.2,0.7556]
[1751172462406,3.29177467,2430.3,2430.2,0.7556]
[1751172464988,3.29171427,2430.4,2430.2,0.7556]
[1751172465490,3.29177467,2430.3,2430.2,0.7556]
[1751172479502,3.2917198,2430.4,2430.2,0.7556]
[1751172480102,3.29177467,2430.3,2430.2,0.7556]
[1751172480399,3.29171613,2430.4,2430.2,0.7556]
[1751172481903,3.29177467,2430.3,2430.2,0.7556]
[1751172486710,3.29171697,2430.4,2430.2,0.7556]
[1751172489316,3.29177467,2430.3,2430.2,0.7556]
[1751172491117,18.97690849,2430.5,2430.2,0.7556]
[1751172491118,3.29171506,2430.4,2430.2,0.7556]
[1751172492320,3.29177467,2430.3,2430.2,0.7556]
[1751172493495,3.29191013,2430.2,2429.8,0.774]
[1751172493699,5.68534629,2429.9,2429.8,0.2066]
[1751172493900,5.68534629,2429.9,2429.8,0.7566]
[1751172494501,5.68534629,2430.0,2429.8,0.7566]
[1751172500798,10.2056,2430.2,2429.9,1.3019]
[1751172501917,13.49751518,2430.2,2429.9,1.3019]
[1751172502226,10.2056,2430.2,2429.9,1.3019]
[1751172513632,10.2056,2430.2,2429.9,4.59418721]
[1751172514130,10.0,2430.3,2430.1,0.7556]
[1751172516410,10.0,2430.4,2430.1,0.7556]
[1751172520305,13.29163938,2430.4,2430.1,0.7556]
[1751172520831,10.0,2430.4,2430.1,0.7556]
[1751172521038,19.18252852,2430.5,2430.1,1.5167]
[1751172526847,15.89094629,2430.5,2430.1,4.8087153]
[1751172527069,19.18246219,2430.5,2430.1,4.8087153]
[1751172533863,19.18246219,2430.5,2430.1,1.5167]
[1751172534033,10.0,2430.3,2430.1,1.5167]
[1751172535165,10.0,2430.4,2430.1,1.5167]
[1751172536044,13.2916506,2430.4,2430.1,1.5167]
[1751172542278,10.0,2430.4,2430.1,1.5167]
[1751172542976,13.29164312,2430.4,2430.1,1.5167]
[1751172543835,10.0,2430.4,2430.1,1.5167]
[1751172545574,10.0,2430.4,2430.1,4.78734162]
[1751172545875,0.2056,2430.5,2430.3,0.7827]
[1751172546180,10.0,2430.6,2430.4,0.55]
[1751172547084,0.2056,2430.7,2430.5,3.29141334]
[1751172547240,3.29290898,2431.0,2430.6,0.55]
[1751172547445,0.2076,2431.0,2430.7,0.7768]
[1751172547873,10.0,2430.9,2430.7,0.7768]
[1751172548076,13.29097594,2430.9,2430.7,0.7768]
[1751172549868,13.49850473,2431.0,2430.7,0.7768]
[1751172550185,3.29097129,2430.9,2430.7,0.7768]
[1751172550345,8.97631758,2430.9,2430.7,0.7768]
[1751172553308,13.49844512,2431.0,2430.7,0.7768]
[1751172553309,3.49852563,2431.0,2430.7,0.7768]
[1751172555198,0.2076,2431.0,2430.7,0.7768]
[1751172555508,0.002,2431.0,2430.8,1.21740359]
[1751172555683,0.002,2431.0,2430.8,0.7556]
[1751172557817,5.68734629,2431.0,2430.8,0.7556]
[1751172558311,8.97820293,2431.0,2430.8,0.7556]
[1751172559183,5.68734629,2431.0,2430.8,0.7556]
[1751172560078,8.97818147,2431.0,2430.8,0.7556]
[1751172561514,5.68734629,2431.0,2430.8,0.7556]
[1751172566314,8.9781745,2431.0,2430.8,0.2056]
[1751172566611,13.29096219,2430.9,2430.8,0.2056]
[1751172566817,3.29117959,2430.8,2430.5,0.7519]
[1751172567020,5.68534629,2430.6,2430.5,0.2056]
[1751172568489,8.97676357,2430.6,2430.1,0.73971402]
[1751172568719,5.68534629,2430.4,2430.2,0.2056]
[1751172568920,5.68534629,2430.4,2430.3,0.55]
[1751172571320,3.49701728,2430.6,2430.3,0.55]
[1751172571321,15.89094629,2430.6,2430.3,0.55]
[1751172571899,19.1823227,2430.6,2430.3,0.55]
[1751172572424,15.89094629,2430.6,2430.3,0.55]
[1751172577132,19.182324,2430.6,2430.3,0.55]
[1751172593938,3.29150969,2430.5,2430.3,0.55]
[1751172595617,19.18239539,2430.6,2430.3,0.55]
[1751172596217,3.29151972,2430.5,2430.3,0.55]
[1751172598620,8.97699484,2430.4,2430.1,0.55]
[1751172598814,5.68534629,2430.4,2430.1,0.7556]
[1751172599040,3.29177682,2430.3,2430.1,0.7556]
[1751172599245,8.97704128,2430.4,2430.1,0.7556]
[1751172600854,3.29180181,2430.3,2430.1,0.7556]
[1751172601153,8.97704718,2430.4,2430.1,0.7556]
[1751172603544,3.2918252,2430.3,2430.1,0.7556]
[1751172604136,8.97703713,2430.4,2430.1,0.7556]
[1751172604456,5.68534629,2430.4,2430.1,0.7556]
[1751172605556,8.97699771,2430.4,2430.1,0.7556]
[1751172609173,5.68534629,2430.4,2430.1,0.7556]
[1751172610231,8.97699713,2430.4,2430.1,0.7556]
[1751172622181,5.68534629,2430.4,2430.1,0.7556]
[1751172623781,8.97702987,2430.4,2430.1,0.7556]
[1751172627203,5.68534629,2430.4,2430.1,0.7556]
[1751172627687,10.0,2430.4,2430.1,0.7556]
[1751172631108,10.0,2430.4,2430.2,0.7705]
[1751172632497,0.2056,2430.5,2430.3,0.55]
[1751172632702,0.2056,2430.6,2430.4,0.7705]
[1751172637014,10.0,2430.5,2430.4,1.3205]
[1751172643933,10.0,2430.5,2430.4,0.55]
[1751172643934,13.2915038,2430.5,2430.4,0.55]
[1751172647446,10.0,2430.5,2430.4,0.55]
[1751172650010,13.2915038,2430.5,2430.4,0.55]
[1751172650540,10.0,2430.5,2430.4,0.55]
[1751172650936,10.2056,2430.6,2430.4,0.55]
[1751172652144,10.2056,2430.6,2430.4,1.3544]
[1751172659716,13.49698143,2430.6,2430.4,1.3544]
[1751172659927,13.49698143,2430.6,2430.4,0.55]
[1751172662047,10.2056,2430.6,2430.4,0.55]
[1751172662549,10.2056,2430.6,2430.4,1.3383]
[1751172663251,3.29104167,2430.9,2430.5,0.55]
[1751172663423,0.2056,2430.9,2430.7,0.55]
[1751172663619,1.676,2431.0,2430.7,0.7556]
[1751172663823,11.676,2431.0,2430.7,4.04680576]
[1751172664850,11.676,2431.0,2430.7,0.7556]
[1751172665047,14.96684312,2431.0,2430.7,0.7556]
[1751172665252,13.29284312,2431.0,2430.7,0.7556]
[1751172665947,10.002,2431.0,2430.7,0.7556]
[1751172666554,13.29283477,2431.0,2430.7,0.7556]
[1751172667351,10.002,2431.0,2430.7,0.7556]
[1751172670152,13.29284543,2431.0,2430.7,0.7556]
[1751172671549,10.002,2431.0,2430.7,0.7556]
[1751172678662,13.29282979,2431.0,2430.7,0.7556]
[1751172680387,10.002,2431.0,2430.7,0.7556]
[1751172686892,10.002,2431.0,2430.8,0.8063]
[1751172700805,13.29285069,2431.0,2430.7,0.7556]
[1751172701212,10.002,2431.0,2430.7,0.7556]
[1751172703415,13.29283955,2431.0,2430.7,0.7556]
[1751172726355,13.29290313,2431.0,2430.7,0.7556]
[1751172730074,10.002,2431.0,2430.7,0.7556]
[1751172730282,13.2928914,2431.0,2430.7,0.7556]
[1751172731238,3.29097044,2430.9,2430.7,0.7556]
[1751172731564,13.29290514,2431.0,2430.7,0.7556]
[1751172731973,3.29098859,2430.9,2430.7,0.7556]
[1751172738491,3.29109758,2430.8,2430.4,0.8239]
[1751172738773,8.97670636,2430.7,2430.6,0.55]
[1751172739464,8.97670636,2430.7,2430.5,0.2056]
[1751172739844,5.68534629,2430.7,2430.5,0.2056]
[1751172741380,4.10915553,2430.8,2430.5,0.2056]
[1751172741557,9.79450182,2430.8,2430.5,0.2056]
[1751172742779,3.29125684,2430.7,2430.5,0.2056]
[1751172742984,3.29159767,2430.5,2430.3,0.55]
[1751172743150,3.29159767,2430.5,2430.3,0.7556]
[1751172743749,9.8002902,2430.6,2430.3,0.7556]
[1751172745964,3.29151385,2430.5,2430.3,0.7556]
[1751172747683,8.97698552,2430.4,2430.3,0.2056]
[1751172747982,3.29180121,2430.3,2430.1,0.7556]
[1751172750290,8.97706025,2430.4,2430.1,0.7556]
[1751172751269,3.29180222,2430.3,2430.1,0.7556]
[1751172752192,8.97705822,2430.4,2430.1,0.7556]
[1751172752693,3.29178843,2430.3,2430.1,0.7556]
[1751172752997,3.29191013,2430.2,2430.1,0.7556]
[1751172754100,3.29182442,2430.3,2430.1,0.7556]
[1751172760669,9.77356563,2430.4,2430.1,0.7556]
[1751172765373,8.97706563,2430.4,2430.1,0.7556]
[1751172769006,5.68534629,2430.4,2430.1,0.7556]
[1751172769387,8.97698649,2430.4,2430.1,0.7556]
[1751172769803,5.68534629,2430.4,2430.1,0.7556]
[1751172770903,8.97700811,2430.4,2430.1,0.7556]
[1751172772807,3.29177996,2430.3,2430.1,0.7556]
[1751172773179,8.97706441,2430.4,2430.1,0.7556]
[1751172784900,3.29182798,2430.3,2430.1,0.7556]
[1751172785100,8.9770484,2430.4,2430.1,0.7556]
[1751172794232,3.29178327,2430.3,2430.1,0.7556]
[1751172796231,3.29191013,2430.2,2430.1,0.7556]
[1751172796406,8.97725642,2430.2,2429.9,0.55]
[1751172796612,9.98754093,2430.4,2429.9,4.04783701]
[1751172796913,3.29178021,2430.3,2429.9,0.7556]
[1751172797119,3.29178021,2430.3,2430.0,0.8218]
[1751172800839,9.18265551,2430.4,2430.0,0.8218]
[1751172808846,3.2917769,2430.3,2430.0,0.8218]
[1751172811844,9.1826659,2430.4,2430.0,0.8218]
[1751172813443,9.1826659,2430.4,2430.0,4.11398076]
[1751172814649,9.1826659,2430.4,2430.0,0.8218]
[1751172814852,3.29191266,2430.2,2430.0,0.8218]
[1751172815746,3.29185203,2430.3,2430.0,0.8218]
[1751172819557,3.29197499,2430.2,2430.0,0.8218]
[1751172823441,13.29183689,2430.3,2430.0,0.8218]